bitfinex/quotes_BTCUSD_20250119
["timestamp","ask_amount","ask_price","bid_price","bid_amount"]
[1737279484449,0.00057702,104590.0,104580.0,0.92640029]
[1737279484884,0.00057702,104590.0,104580.0,0.9287685]
[1737279485086,0.00057702,104590.0,104580.0,0.9861785]
[1737279485087,2e-08,104590.0,104580.0,0.9861785]
[1737279485946,2e-08,104590.0,104580.0,1.0675785]
[1737279486569,0.0881379,104650.0,104640.0,0.195565]
[1737279486707,0.07738516,104650.0,104640.0,0.195565]
[1737279487319,0.08863469,104650.0,104640.0,0.195565]
[1737279487929,0.08863469,104650.0,104640.0,0.1965205]
[1737279488128,0.08863469,104650.0,104640.0,0.20250102]
[1737279488352,0.08863469,104650.0,104640.0,0.20863629]
[1737279488561,0.08463469,104650.0,104640.0,0.20863629]
[1737279488969,0.01174679,104650.0,104640.0,0.35863629]
[1737279490054,0.1109876,104650.0,104640.0,0.35863629]
[1737279490263,0.1108998,104650.0,104640.0,0.35863629]
[1737279490661,0.01165899,104650.0,104640.0,0.35265577]
[1737279491552,0.08805899,104650.0,104640.0,0.345565]
[1737279491748,0.18361499,104650.0,104640.0,0.245565]
[1737279492012,0.2828558,104650.0,104630.0,0.58796438]
[1737279492215,0.01124953,104640.0,104630.0,0.482272]
[1737279492412,0.41468681,104640.0,104620.0,0.1979513]
[1737279492631,0.095574,104630.0,104620.0,0.1023673]
[1737279492836,0.095574,104630.0,104620.0,0.1979513]
[1737279492997,0.80030738,104640.0,104620.0,0.1979513]
[1737279493206,0.70140581,104640.0,104620.0,0.3891173]
[1737279493380,0.22354081,104640.0,104630.0,0.095574]
[1737279494771,0.13554953,104640.0,104630.0,0.195574]
[1737279495014,0.08764953,104640.0,104630.0,0.195574]
[1737279495391,0.08764953,104640.0,104630.0,0.345574]
[1737279495592,0.09063221,104640.0,104630.0,0.345574]
[1737279496000,0.09063221,104640.0,104630.0,0.402984]
[1737279497160,0.09063221,104640.0,104630.0,0.345574]
[1737279497692,0.08764953,104630.0,104620.0,0.10691326]
[1737279497862,0.18689034,104630.0,104620.0,0.10691326]
[1737279498103,0.28246434,104630.0,104620.0,0.10691326]
[1737279498306,0.08764953,104630.0,104620.0,0.20691326]
[1737279498506,0.08764953,104630.0,104620.0,0.19653972]
[1737279498664,0.08764953,104630.0,104620.0,0.195584]
[1737279499192,0.0764,104630.0,104620.0,0.195584]
[1737279500718,0.08764953,104630.0,104620.0,0.195584]
[1737279501288,0.08764953,104630.0,104620.0,0.095584]
[1737279501639,0.28246534,104630.0,104620.0,0.095584]
[1737279501787,0.18689034,104630.0,104620.0,0.095584]
[1737279501993,0.08764953,104630.0,104620.0,0.095584]
[1737279502195,0.08764953,104630.0,104620.0,0.195584]
[1737279502468,0.08764953,104630.0,104620.0,0.095584]
[1737279502785,0.08764953,104630.0,104620.0,0.195584]
[1737279503284,0.08764953,104630.0,104620.0,0.095584]
[1737279503520,0.28246434,104630.0,104620.0,0.095584]
[1737279503750,0.18689034,104630.0,104620.0,0.095584]
[1737279503971,0.0764,104630.0,104620.0,0.34653975]
[1737279504195,0.01167733,104640.0,104630.0,0.195574]
[1737279504573,0.10724233,104640.0,104630.0,0.095574]
[1737279504958,0.01167733,104640.0,104630.0,0.195574]
[1737279505123,0.01167733,104640.0,104630.0,0.095574]
[1737279505327,0.10724233,104640.0,104630.0,0.095574]
[1737279505568,0.01167733,104640.0,104630.0,0.195574]
[1737279506723,0.28338414,104640.0,104620.0,0.44825253]
[1737279507106,0.47451914,104640.0,104620.0,0.73498053]
[1737279507461,0.65441661,104640.0,104620.0,0.39383653]
[1737279507677,0.25333661,104630.0,104620.0,0.00709553]
[1737279508414,0.49788618,104630.0,104620.0,0.00709553]
[1737279508612,0.40045564,104630.0,104620.0,0.00709553]
[1737279508883,0.33023661,104630.0,104620.0,0.00709553]
[1737279509097,0.32131481,104630.0,104620.0,0.00709553]
[1737279509487,0.39153384,104630.0,104620.0,0.00709553]
[1737279510147,0.095584,104620.0,104610.0,0.386777]
[1737279510309,0.60804681,104630.0,104610.0,0.286777]
[1737279510509,0.70362781,104630.0,104610.0,0.386777]
[1737279510713,0.51247081,104630.0,104620.0,0.00089775]
[1737279510914,0.51247081,104630.0,104620.0,0.09648175]
[1737279511335,0.51247081,104630.0,104620.0,0.00089775]
[1737279512105,0.32131481,104630.0,104620.0,0.09648175]
[1737279512307,0.0769,104630.0,104620.0,0.19648175]
[1737279512556,0.01167733,104640.0,104630.0,0.095574]
[1737279512729,0.11091814,104640.0,104630.0,0.095574]
[1737279512908,0.11091814,104640.0,104630.0,0.195574]
[1737279512909,0.0004278,104640.0,104630.0,0.195574]
[1737279513319,0.01167733,104640.0,104630.0,0.195574]
[1737279513693,0.0004278,104640.0,104630.0,0.195574]
[1737279514042,0.01167733,104640.0,104630.0,0.195574]
[1737279514246,0.01167733,104640.0,104630.0,0.19652957]
[1737279514444,0.01167733,104640.0,104630.0,0.195574]
[1737279515880,0.0004278,104640.0,104630.0,0.35658759]
[1737279516072,0.0004278,104640.0,104630.0,0.35563203]
[1737279516472,0.01472538,104640.0,104630.0,0.36274613]
[1737279517046,0.01472538,104640.0,104630.0,0.43296516]
[1737279517418,0.01472538,104640.0,104630.0,0.53220597]
[1737279517645,0.01472538,104640.0,104630.0,0.55520597]
[1737279518270,0.0004278,104640.0,104630.0,0.55520597]
[1737279518694,0.0004278,104640.0,104630.0,0.36274613]
[1737279519087,0.0004278,104640.0,104630.0,0.55520597]
[1737279519508,0.0004278,104640.0,104630.0,0.66118358]
[1737279519706,0.0004278,104640.0,104630.0,0.36872374]
[1737279519915,0.0004278,104640.0,104630.0,0.53818358]
[1737279520055,0.0004278,104640.0,104630.0,0.56118358]
[1737279520464,0.0004278,104640.0,104630.0,0.49096455]
[1737279520870,0.0004278,104640.0,104630.0,0.56118358]
[1737279521079,0.00936298,104640.0,104630.0,0.56118358]
[1737279521302,0.00936298,104640.0,104630.0,0.49096455]
[1737279521502,0.00936298,104640.0,104630.0,0.56118358]
[1737279521933,0.00936298,104640.0,104630.0,0.55406948]
[1737279522264,0.0004278,104640.0,104630.0,0.36160964]
[1737279522901,0.0004278,104640.0,104630.0,0.36872165]
[1737279523860,0.0004278,104640.0,104630.0,0.46796246]
[1737279524056,0.0004278,104640.0,104630.0,0.53818149]
[1737279524259,0.0004278,104640.0,104630.0,0.46796246]
[1737279524884,0.0004278,104640.0,104630.0,0.36872165]
[1737279525081,0.00936082,104640.0,104630.0,0.36872165]
[1737279525891,0.02061035,104640.0,104630.0,0.36872165]
[1737279526075,0.02061035,104640.0,104630.0,0.21872165]
[1737279526487,0.02061035,104640.0,104630.0,0.36872165]
[1737279526704,0.01167733,104640.0,104630.0,0.36872165]
[1737279528409,0.16988764,104640.0,104630.0,0.01308962]
[1737279528578,0.27233361,104640.0,104630.0,0.01308962]
[1737279529137,0.27233361,104640.0,104630.0,0.00711201]
[1737279529971,0.01124953,104630.0,104620.0,0.45335904]
[1737279530185,0.16278865,104640.0,104630.0,0.095574]
[1737279530343,0.06094953,104630.0,104620.0,0.00089775]
[1737279530551,0.14894081,104630.0,104620.0,0.09647975]
[1737279531000,0.0775278,104640.0,104630.0,0.095574]
[1737279531207,0.17676861,104640.0,104630.0,0.095574]
[1737279531413,0.46347261,104640.0,104620.0,0.48589658]
[1737279531977,0.0775278,104640.0,104630.0,0.08065492]
[1737279532107,0.29067993,104640.0,104630.0,0.08065492]
[1737279532507,0.30192946,104640.0,104630.0,0.08065492]
[1737279532726,0.29067993,104640.0,104630.0,0.08065492]
[1737279532924,0.30192946,104640.0,104630.0,0.08065492]
[1737279533128,0.22482946,104640.0,104630.0,0.33065492]
[1737279533331,0.01167733,104640.0,104630.0,0.33065492]
[1737279533995,0.26545364,104640.0,104630.0,0.095574]
[1737279534201,0.0004278,104640.0,104630.0,0.095574]
[1737279534923,0.0004278,104640.0,104630.0,0.09647175]
[1737279539206,0.0004278,104640.0,104630.0,0.09742737]
[1737279539448,0.01167733,104640.0,104630.0,0.09742737]
[1737279539765,0.01167733,104640.0,104630.0,0.09647175]
[1737279539894,0.01167733,104640.0,104630.0,0.24647175]
[1737279540336,0.01167733,104640.0,104630.0,0.34647175]
[1737279540721,0.01167733,104640.0,104630.0,0.35358394]
[1737279540938,0.01167733,104640.0,104630.0,0.35956192]
[1737279541489,0.0004278,104640.0,104630.0,0.35956192]
[1737279541848,0.01167733,104640.0,104630.0,0.35956192]
[1737279543934,0.0004278,104640.0,104630.0,0.35956192]
[1737279544200,0.01167733,104640.0,104630.0,0.35956192]
[1737279544517,0.0004278,104640.0,104630.0,0.35956192]
[1737279544711,0.01167733,104640.0,104630.0,0.35956192]
[1737279545351,0.01167733,104640.0,104630.0,0.36958855]
[1737279549360,0.0004278,104640.0,104630.0,0.36958855]
[1737279549762,0.01167733,104640.0,104630.0,0.36958855]
[1737279550076,0.0004278,104640.0,104630.0,0.36958855]
[1737279550281,0.01167733,104640.0,104630.0,0.36958855]
[1737279550500,0.08737733,104640.0,104630.0,0.36958855]
[1737279550904,0.01167733,104640.0,104630.0,0.36958855]
[1737279552957,0.0004278,104640.0,104630.0,0.01398792]
[1737279553139,0.26545264,104640.0,104630.0,0.01398792]
[1737279553681,0.26545264,104640.0,104630.0,0.00800994]
[1737279553682,0.44039345,104640.0,104630.0,0.00800994]
[1737279553826,0.41887034,104640.0,104630.0,0.02361658]
[1737279554225,0.80495361,104640.0,104630.0,0.02361658]
[1737279554428,0.218874,104630.0,104620.0,0.10089775]
[1737279554678,0.38833384,104630.0,104620.0,0.10284981]
[1737279555094,0.53833384,104630.0,104620.0,0.10284981]
[1737279555983,0.53833384,104630.0,104620.0,0.10089775]
[1737279556249,0.54813195,104630.0,104620.0,0.10089775]
[1737279556659,0.68769441,104630.0,104620.0,0.10089775]
[1737279556862,0.61747538,104630.0,104620.0,0.10089775]
[1737279557067,0.68769441,104630.0,104620.0,0.10089775]
[1737279557472,0.61747538,104630.0,104620.0,0.10089775]
[1737279557615,0.60767727,104630.0,104620.0,0.19648175]
[1737279557818,0.46450327,104630.0,104620.0,0.19648175]
[1737279558021,0.43236941,104630.0,104620.0,0.19648175]
[1737279558257,0.52794341,104630.0,104620.0,0.19648175]
[1737279558935,0.43236941,104630.0,104620.0,0.19648175]
[1737279559139,0.26867813,104630.0,104620.0,0.19648175]
[1737279559463,0.21448202,104630.0,104620.0,0.19648175]
[1737279560055,0.22573155,104630.0,104620.0,0.29743749]
[1737279560362,0.22573155,104630.0,104620.0,0.44648175]
[1737279560363,0.38599215,104630.0,104620.0,0.44648175]
[1737279560609,0.38599215,104630.0,104620.0,0.45642401]
[1737279561559,0.22615905,104640.0,104620.0,0.45642401]
[1737279561560,0.09745306,104640.0,104630.0,0.345574]
[1737279562581,0.22611711,104640.0,104630.0,0.345574]
[1737279562788,0.22611711,104640.0,104630.0,0.245574]
[1737279563025,0.42092292,104640.0,104630.0,0.245574]
[1737279563238,0.32535792,104640.0,104630.0,0.245574]
[1737279563436,0.22611711,104640.0,104630.0,0.345574]
[1737279564486,0.22611711,104640.0,104630.0,0.245574]
[1737279564897,0.22611711,104640.0,104630.0,0.095574]
[1737279565887,0.21486758,104640.0,104630.0,0.41674867]
[1737279566088,0.21486758,104640.0,104630.0,0.41579303]
[1737279566348,0.21486758,104640.0,104630.0,0.345574]
[1737279566752,0.21486758,104640.0,104630.0,0.42291732]
[1737279566958,0.0004275,104640.0,104630.0,0.35269829]
[1737279567160,0.0004275,104640.0,104630.0,0.3586759]
[1737279567738,0.0004275,104640.0,104630.0,0.35269829]
[1737279567949,0.0004275,104640.0,104630.0,0.35867585]
[1737279572286,0.0004275,104640.0,104630.0,0.45791666]
[1737279572485,0.0004275,104640.0,104630.0,0.52813569]
[1737279573239,0.0004275,104640.0,104630.0,0.65113569]
[1737279573440,0.0004275,104640.0,104630.0,0.72913569]
[1737279573809,0.0004275,104640.0,104630.0,0.62913569]
[1737279574264,0.0004275,104640.0,104630.0,0.35867585]
[1737279574470,0.0004275,104640.0,104630.0,0.43389488]
[1737279575722,0.0004275,104640.0,104630.0,0.36367585]
[1737279577117,0.01167703,104640.0,104630.0,0.11367585]
[1737279577446,0.11091784,104640.0,104630.0,0.01810185]
[1737279577644,0.27713331,104640.0,104630.0,0.01810185]
[1737279578356,0.66312546,104640.0,104630.0,0.01097756]
[1737279578560,0.66312546,104640.0,104630.0,0.005]
[1737279578561,0.8325853,104640.0,104630.0,0.005]
[1737279579239,0.73334449,104640.0,104630.0,0.005]
[1737279580221,0.82499997,104640.0,104630.0,0.005]
[1737279580487,0.80068094,104640.0,104630.0,0.005]
[1737279580946,0.87089997,104640.0,104630.0,0.005]
[1737279581186,0.81052872,104640.0,104630.0,0.005]
[1737279581430,0.65234093,104640.0,104630.0,0.005]
[1737279581694,1.01212242,104640.0,104630.0,0.005]
[1737279581969,0.223374,104630.0,104620.0,0.10089775]
[1737279582229,0.40203384,104630.0,104620.0,0.10089775]
[1737279582442,0.095602,104600.0,104590.0,0.01310654]
[1737279582646,0.34696184,104600.0,104590.0,0.00712644]
[1737279583342,0.34696184,104600.0,104570.0,0.286872]
[1737279583343,0.01124953,104580.0,104570.0,0.286872]
[1737279583568,0.01124953,104570.0,104560.0,0.88779338]
[1737279583793,0.01124953,104570.0,104560.0,0.88788118]
[1737279584236,0.01124953,104570.0,104560.0,0.59661818]
[1737279584442,0.18070937,104570.0,104560.0,0.59662418]
[1737279584666,0.16945984,104570.0,104560.0,0.59662418]
[1737279584893,0.11049034,104570.0,104560.0,0.59662418]
[1737279585117,0.01124953,104570.0,104560.0,0.59662418]
[1737279585331,0.0814,104580.0,104570.0,0.095629]
[1737279585545,0.39468149,104580.0,104570.0,0.095629]
[1737279586215,0.49030149,104580.0,104570.0,0.095629]
[1737279586412,0.68154249,104580.0,104560.0,0.97915718]
[1737279586624,0.49030149,104580.0,104570.0,0.095629]
[1737279586839,0.09924081,104580.0,104570.0,0.095629]
[1737279588593,0.08561627,104590.0,104580.0,0.09562]
[1737279588866,0.18485708,104590.0,104580.0,0.09562]
[1737279589187,0.09924081,104590.0,104580.0,0.09562]
[1737279594257,0.286808,104600.0,104580.0,0.1]
[1737279594258,0.095603,104600.0,104580.0,0.1]
[1737279594472,0.19484381,104600.0,104590.0,0.095611]
[1737279594686,0.29408462,104600.0,104590.0,0.095611]
[1737279594834,0.01124953,104580.0,104570.0,0.38777296]
[1737279595048,0.01124953,104580.0,104570.0,0.28777296]
[1737279595251,0.01124953,104580.0,104570.0,0.38777296]
[1737279595658,0.01124953,104580.0,104570.0,0.28777296]
[1737279596026,0.01124953,104580.0,104570.0,0.38777296]
[1737279597463,0.01124953,104580.0,104570.0,0.28777296]
[1737279597666,0.01124953,104580.0,104570.0,0.38777296]
[1737279598957,0.01124953,104580.0,104570.0,0.39752304]
[1737279599614,0.01129022,104580.0,104570.0,0.39752304]
[1737279603787,0.01129022,104580.0,104570.0,0.47782304]
[1737279604228,4.069e-05,104580.0,104570.0,0.82028288]
[1737279604443,0.00227762,104580.0,104570.0,0.9068788]
[1737279604641,0.00227762,104580.0,104570.0,1.0068788]
[1737279605056,0.00227762,104580.0,104570.0,1.01398098]
[1737279605466,0.00227762,104580.0,104570.0,1.02952852]
[1737279605787,0.00227762,104580.0,104570.0,1.08693852]
[1737279605987,0.00227762,104580.0,104570.0,0.8912326]
[1737279606235,0.00227762,104580.0,104570.0,0.72101357]
[1737279606437,0.00227762,104580.0,104570.0,0.69877276]
[1737279606818,0.01352715,104580.0,104570.0,0.42017276]
[1737279607017,0.01352715,104580.0,104570.0,0.41042268]
[1737279607260,0.01352715,104580.0,104570.0,0.31042268]
[1737279607467,0.00227762,104580.0,104570.0,0.31042268]
[1737279607674,0.34265746,104580.0,104570.0,0.02354768]
[1737279607876,0.17681843,104580.0,104570.0,0.11917668]
[1737279608052,0.27243843,104580.0,104570.0,0.11917668]
[1737279608260,0.27243843,104580.0,104570.0,0.02354768]
[1737279608855,0.17681843,104580.0,104570.0,0.11917668]
[1737279609057,0.10151843,104580.0,104570.0,0.11917668]
[1737279609435,0.10151843,104580.0,104570.0,0.10362914]
[1737279609689,0.00227762,104580.0,104570.0,0.09652696]
[1737279609937,0.00227762,104580.0,104570.0,0.19652696]
[1737279610342,0.08389389,104590.0,104580.0,0.09562]
[1737279610544,0.1831347,104590.0,104580.0,0.09562]
[1737279610960,0.19485181,104590.0,104580.0,0.09562]
[1737279611594,0.09924081,104590.0,104580.0,0.09562]
[1737279611808,0.19485181,104590.0,104580.0,0.09562]
[1737279612025,0.09924081,104590.0,104580.0,0.09562]
[1737279612232,0.09924081,104590.0,104580.0,0.10159982]
[1737279612431,0.19485181,104590.0,104580.0,0.10159982]
[1737279612635,0.09924081,104590.0,104580.0,0.10159982]
[1737279612841,0.19485181,104590.0,104580.0,0.10159982]
[1737279613046,0.26507084,104590.0,104580.0,0.00597982]
[1737279613254,0.19485181,104590.0,104580.0,0.00597982]
[1737279613667,0.19485181,104590.0,104580.0,0.10159982]
[1737279613876,0.19485181,104590.0,104580.0,0.00597982]
[1737279614902,0.36431165,104590.0,104580.0,0.00597982]
[1737279615103,0.09562,104580.0,104570.0,0.09652696]
[1737279615323,0.19486081,104580.0,104570.0,0.00089796]
[1737279616342,0.19486081,104580.0,104570.0,0.00688049]
[1737279617085,0.31736081,104580.0,104570.0,0.00688049]
[1737279617239,0.41660162,104580.0,104570.0,0.00688049]
[1737279617820,0.31736081,104580.0,104570.0,0.00688049]
[1737279618060,0.31736081,104580.0,104570.0,0.10250949]
[1737279618264,0.09924081,104580.0,104570.0,0.10250949]
[1737279618593,0.39547901,104590.0,104580.0,0.09562]
[1737279618796,0.49471982,104590.0,104570.0,0.48500349]
[1737279619078,0.68594582,104590.0,104580.0,0.09562]
[1737279619652,0.94739085,104590.0,104570.0,0.48500449]
[1737279619848,0.64752284,104590.0,104570.0,0.48500449]
[1737279620050,0.45629684,104590.0,104580.0,0.00598253]
[1737279620956,0.60629684,104590.0,104580.0,0.00598253]
[1737279621345,0.99169549,104590.0,104580.0,0.00598253]
[1737279622011,0.09562,104580.0,104570.0,0.00089796]
[1737279622235,0.19486081,104580.0,104570.0,0.00089796]
[1737279623062,0.19486081,104580.0,104570.0,0.00688044]
[1737279623419,0.09924081,104580.0,104570.0,0.10250944]
[1737279623628,0.19486081,104580.0,104570.0,0.10250944]
[1737279623836,0.48492359,104580.0,104570.0,0.10250944]
[1737279624192,0.38568278,104580.0,104570.0,0.10250944]
[1737279624738,0.38568278,104580.0,104570.0,0.00688044]
[1737279624739,0.48130278,104580.0,104570.0,0.00688044]
[1737279624949,0.48130278,104580.0,104570.0,0.10250944]
[1737279625157,0.58054359,104580.0,104570.0,0.10250944]
[1737279625379,0.70919798,104580.0,104570.0,0.10250944]
[1737279625554,0.70919798,104580.0,104570.0,0.00688044]
[1737279626552,0.45202621,104580.0,104570.0,0.00688044]
[1737279627180,0.45202621,104580.0,104570.0,0.10250944]
[1737279627381,0.45202621,104580.0,104570.0,0.09652696]
[1737279627579,0.45202621,104580.0,104570.0,0.00089796]
[1737279627844,0.76905998,104580.0,104570.0,0.00089796]
[1737279628048,0.76905998,104580.0,104570.0,0.09652696]
[1737279628271,0.76905998,104580.0,104570.0,0.00089796]
[1737279628925,0.45202621,104580.0,104570.0,0.09652696]
[1737279629111,0.45202621,104580.0,104570.0,0.00089796]
[1737279629655,0.45202621,104580.0,104570.0,0.09652696]
[1737279630655,0.35640621,104580.0,104570.0,0.09652696]
[1737279631161,0.35683411,104580.0,104570.0,0.09652696]
[1737279631979,0.36012944,104580.0,104570.0,0.09652696]
[1737279632377,0.48952082,104580.0,104570.0,0.10250899]
[1737279633018,0.39028001,104580.0,104570.0,0.22550899]
[1737279633218,0.39028001,104580.0,104570.0,0.30220899]
[1737279633424,0.39028001,104580.0,104570.0,0.52242802]
[1737279633425,0.40152954,104580.0,104570.0,0.52242802]
[1737279633629,0.51913372,104580.0,104570.0,0.52242802]
[1737279633829,0.53038325,104580.0,104570.0,0.52242802]
[1737279634036,0.53038325,104580.0,104570.0,0.45220899]
[1737279634682,0.53038325,104580.0,104570.0,0.53199821]
[1737279634886,0.22972162,104580.0,104570.0,0.53199821]
[1737279635100,0.22972162,104580.0,104570.0,0.46177918]
[1737279636114,0.3902751,104580.0,104570.0,0.46177918]
[1737279636254,0.40152463,104580.0,104570.0,0.46177918]
[1737279636484,0.3902751,104580.0,104570.0,0.53199821]
[1737279636910,0.3902751,104580.0,104570.0,0.63123902]
[1737279637119,0.39350182,104580.0,104570.0,0.68687137]
[1737279637725,0.3953429,104580.0,104570.0,0.68687137]
[1737279638131,0.3953429,104580.0,104570.0,0.69477888]
[1737279638560,0.00879103,104580.0,104570.0,0.69477888]
[1737279639084,0.00879103,104580.0,104570.0,0.69883179]
[1737279640332,0.00879103,104580.0,104570.0,0.68687137]
[1737279640582,0.00879103,104580.0,104570.0,0.82516729]
[1737279642455,0.00879103,104580.0,104570.0,0.72516729]
[1737279643023,0.00879103,104580.0,104570.0,0.74462705]
[1737279643250,0.00879103,104580.0,104570.0,0.75658723]
[1737279644426,0.00879103,104580.0,104570.0,0.63434642]
[1737279644614,0.00879103,104580.0,104570.0,0.64223857]
[1737279645236,0.00879103,104580.0,104570.0,0.76447938]
[1737279647119,0.00879103,104580.0,104570.0,0.72618346]
[1737279649219,0.00879103,104580.0,104570.0,0.55672362]
[1737279649482,0.00879103,104580.0,104570.0,0.61498247]
[1737279650442,0.00879103,104580.0,104570.0,0.60709032]
[1737279651030,0.00625703,104580.0,104570.0,0.60709032]
[1737279651732,0.00625703,104580.0,104570.0,0.61498247]
[1737279652861,0.00625703,104580.0,104570.0,0.60709032]
[1737279654786,0.00668493,104580.0,104570.0,0.60709032]
[1737279658580,0.00668493,104580.0,104570.0,0.58763056]
[1737279658835,0.00668493,104580.0,104570.0,0.58164853]
[1737279659027,0.00668493,104580.0,104570.0,0.57207834]
[1737279659309,0.00668493,104580.0,104570.0,0.58762827]
[1737279660515,0.00668493,104580.0,104570.0,0.37982843]
[1737279660723,0.01793446,104580.0,104570.0,0.22982843]
[1737279661136,0.01793446,104580.0,104570.0,0.40282843]
[1737279661545,0.01793446,104580.0,104570.0,0.39490924]
[1737279662155,0.01793446,104580.0,104570.0,0.54302827]
[1737279662975,0.01793446,104580.0,104570.0,0.39490924]
[1737279664431,0.01793446,104580.0,104570.0,0.4068716]
[1737279666204,0.10230493,104580.0,104570.0,0.30141025]
[1737279666429,0.20154574,104580.0,104570.0,0.02841025]
[1737279667088,0.10592574,104580.0,104570.0,0.11207689]
[1737279667556,0.20154574,104580.0,104570.0,0.11207689]
[1737279667804,0.10592574,104580.0,104570.0,0.11207689]
[1737279668295,0.80285138,104580.0,104570.0,0.1025077]
[1737279668988,0.70723138,104580.0,104570.0,0.1025077]
[1737279669229,0.80285138,104580.0,104570.0,0.1025077]
[1737279669479,0.71695623,104580.0,104570.0,0.0068787]
[1737279669696,0.79915623,104580.0,104570.0,0.0068787]
[1737279670746,0.67030252,104580.0,104570.0,0.0068787]
[1737279671171,0.67030252,104580.0,104570.0,0.00089796]
[1737279671350,0.67030252,104580.0,104570.0,0.09652696]
[1737279671759,0.67030252,104580.0,104570.0,0.00089796]
[1737279672110,0.49849951,104580.0,104570.0,0.00089796]
[1737279673460,0.56871854,104580.0,104570.0,0.00089796]
[1737279673836,0.59305176,104580.0,104570.0,0.00089796]
[1737279674464,0.76113017,104580.0,104570.0,0.00089796]
[1737279674664,0.91113017,104580.0,104570.0,0.00089796]
[1737279674855,0.80793017,104580.0,104570.0,0.00089796]
[1737279675058,0.81701017,104580.0,104570.0,0.00089796]
[1737279676212,0.55984477,104580.0,104570.0,0.00089796]
[1737279676524,0.65908558,104580.0,104570.0,0.00089796]
[1737279676675,0.095648,104550.0,104540.0,0.00089838]
[1737279676885,0.19498379,104550.0,104540.0,0.00089838]
[1737279677095,0.20126062,104550.0,104540.0,0.00089838]
[1737279677293,0.23950962,104550.0,104540.0,0.00089838]
[1737279678983,0.83954801,104550.0,104540.0,0.00089838]
[1737279679421,0.83913048,104550.0,104540.0,0.00089838]
[1737279681056,0.95614951,104550.0,104540.0,0.00089838]
[1737279681250,0.83913048,104550.0,104540.0,0.00089838]
[1737279681472,0.62483105,104550.0,104540.0,0.00089838]
[1737279682099,0.63477186,104550.0,104540.0,0.00089838]
[1737279683321,0.62483105,104550.0,104540.0,0.00089838]
[1737279683924,0.45339151,104550.0,104540.0,0.00089838]
[1737279685282,0.23909209,104550.0,104540.0,0.00089838]
[1737279685469,0.30931112,104550.0,104540.0,0.00089838]
[1737279686114,0.40855193,104550.0,104540.0,0.00089838]
[1737279686351,0.44181112,104550.0,104540.0,0.00089838]
[1737279686555,0.65611054,104550.0,104540.0,0.00089838]
[1737279687133,0.80611054,104550.0,104540.0,0.00089838]
[1737279687815,1.19184951,104550.0,104540.0,0.00089838]
[1737279690529,0.97755009,104550.0,104540.0,0.00089838]
[1737279690726,1.0767909,104550.0,104540.0,0.00089838]
[1737279691092,0.97755009,104550.0,104540.0,0.00089838]
[1737279692493,0.97755009,104550.0,104530.0,0.00089754]
[1737279692494,0.245657,104540.0,104530.0,0.02381095]
[1737279692701,0.41511684,104540.0,104530.0,0.02381095]
[1737279692925,0.42148636,104540.0,104530.0,0.02381095]
[1737279693706,0.50438636,104540.0,104530.0,0.02381095]
[1737279693923,0.60362717,104540.0,104530.0,0.02381095]
[1737279694136,0.61270717,104540.0,104530.0,0.02381095]
[1737279694340,0.46270717,104540.0,104530.0,0.02381095]
[1737279694792,0.36346636,104540.0,104530.0,0.02381095]
[1737279694913,0.87668996,104540.0,104530.0,0.02381095]
[1737279695522,0.8760887,104540.0,104530.0,0.02381095]
[1737279696750,0.8670087,104540.0,104530.0,0.02381095]
[1737279696971,1.0260887,104540.0,104530.0,0.00081095]
[1737279697228,0.245666,104530.0,104520.0,0.00089712]
[1737279697402,0.57732487,104530.0,104520.0,0.00089712]
[1737279697632,0.56301099,104530.0,104520.0,0.00089712]
[1737279698381,0.56301099,104530.0,104520.0,0.02389712]
[1737279698966,0.8201703,104530.0,104520.0,0.02389712]
[1737279699177,0.8110903,104530.0,104520.0,0.02389712]
[1737279699304,0.69127127,104530.0,104520.0,0.02389712]
[1737279699508,0.45837127,104530.0,104520.0,0.02389712]
[1737279700227,0.58532852,104530.0,104520.0,0.02389712]
[1737279700450,0.65554755,104530.0,104520.0,0.02389712]
[1737279701313,0.75478836,104530.0,104520.0,0.02389712]
[1737279701517,0.73414755,104530.0,104520.0,0.02389712]
[1737279701721,0.35003099,104530.0,104520.0,0.02389712]
[1737279701922,0.50003099,104530.0,104520.0,0.02389712]
[1737279702145,0.39633099,104530.0,104520.0,0.02389712]
[1737279702347,0.6455718,104530.0,104520.0,0.00089712]
[1737279702762,1.02967287,104530.0,104520.0,0.00089712]
[1737279703810,0.93043206,104530.0,104520.0,0.00089712]
[1737279704019,0.81391303,104530.0,104520.0,0.00089712]
[1737279704242,0.56461005,104530.0,104520.0,0.00089712]
[1737279704423,0.41461005,104530.0,104520.0,0.00089712]
[1737279704665,0.095675,104520.0,104510.0,0.00082812]
[1737279704834,0.26513484,104520.0,104510.0,0.00082812]
[1737279705033,0.27137956,104520.0,104510.0,0.02382812]
[1737279705398,0.20116053,104520.0,104510.0,0.02382812]
[1737279705600,0.20116053,104520.0,104510.0,0.00082812]
[1737279706716,0.28657968,104520.0,104510.0,0.00082812]
[1737279708993,0.28657968,104520.0,104510.0,0.00681443]
[1737279710692,0.41470841,104520.0,104510.0,0.00082812]
[1737279711082,0.58416825,104520.0,104510.0,0.00082812]
[1737279711284,0.73416825,104520.0,104510.0,0.00082812]
[1737279711495,0.63492744,104520.0,104510.0,0.00082812]
[1737279712331,0.88231315,104520.0,104510.0,0.00082812]
[1737279713209,0.66876527,104520.0,104510.0,0.00082812]
[1737279713876,0.75513887,104520.0,104510.0,0.00082812]
[1737279714075,0.75556707,104520.0,104510.0,0.00082812]
[1737279714396,0.82242083,104520.0,104510.0,0.00082812]
[1737279715414,0.75556707,104520.0,104510.0,0.00082812]
[1737279715616,0.15,104510.0,104500.0,0.02293859]
[1737279715821,0.34492481,104510.0,104500.0,0.02293859]
[1737279716046,0.35065448,104510.0,104500.0,0.02293859]
[1737279716293,0.20065448,104510.0,104500.0,0.02293859]
[1737279716663,0.44894951,104520.0,104510.0,0.29934552]
[1737279716866,0.64386532,104520.0,104510.0,0.29934552]
[1737279717786,0.71408435,104520.0,104510.0,0.32234552]
[1737279718002,0.8422811,104520.0,104510.0,0.32234552]
[1737279719234,0.90091174,104520.0,104510.0,0.32234552]
[1737279719697,0.75079271,104520.0,104510.0,0.32234552]
[1737279719918,0.82101174,104520.0,104510.0,0.32234552]
[1737279720540,0.86408435,104520.0,104510.0,0.32234552]
[1737279720753,0.79386532,104520.0,104510.0,0.32234552]
[1737279720963,0.64386532,104520.0,104510.0,0.32234552]
[1737279721369,0.64386532,104520.0,104510.0,0.39964552]
[1737279722364,0.54462451,104520.0,104510.0,0.39964552]
[1737279722703,0.2874652,104520.0,104510.0,0.39964552]
[1737279723212,0.38670601,104520.0,104510.0,0.32234552]
[1737279723417,0.39093621,104520.0,104510.0,0.32234552]
[1737279723623,0.38670601,104520.0,104510.0,0.32234552]
[1737279724030,0.77274375,104520.0,104510.0,0.32234552]
[1737279725263,0.77274375,104520.0,104510.0,0.3283317]
[1737279725746,0.77274375,104520.0,104510.0,0.32923092]
[1737279727963,0.64386532,104520.0,104510.0,0.32923092]
[1737279728082,0.64386532,104520.0,104510.0,0.32324474]